[Event "Titled Tuesday Blitz December 13 Late 2022"]
[White "Sjugirov, Sanan"]
[Black "So, Wesley"]
[WhiteFideId "4189302"]
[BlackFideId "5202213"]
[WhiteElo "2613"]
[BlackElo "2763"]
[Result "0-1"]
[Round "09"]
[TimeControl "180+1"]
[Date "2022.12.13"]
[WhiteClock "0:00:01"]
[BlackClock "0:00:06"]

1. d4 {[%clk 0:02:55]}  Nf6 {[%clk 0:02:58]} 2. c4 {[%clk 0:02:55]}  e6 {[%clk 0:02:58]} 3. Nf3 {[%clk 0:02:56]}  d5 {[%clk 0:02:57]} 4. g3 {[%clk 0:02:56]}  dxc4 {[%clk 0:02:56]} 5. Bg2 {[%clk 0:02:56]}  c5 {[%clk 0:02:57]} 6. O-O {[%clk 0:02:56]}  Nc6 {[%clk 0:02:57]} 7. dxc5 {[%clk 0:02:55]}  Qxd1 {[%clk 0:02:58]} 8. Rxd1 {[%clk 0:02:55]}  Bxc5 {[%clk 0:02:59]} 9. Nbd2 {[%clk 0:02:55]}  c3 {[%clk 0:02:59]} 10. bxc3 {[%clk 0:02:56]}  O-O {[%clk 0:02:59]} 11. Nb3 {[%clk 0:02:54]}  Be7 {[%clk 0:02:59]} 12. c4 {[%clk 0:02:44]}  Bd7 {[%clk 0:02:58]} 13. Bb2 {[%clk 0:02:41]}  Rfc8 {[%clk 0:02:54]} 14. a4 {[%clk 0:02:35]}  a5 {[%clk 0:02:32]} 15. Ne1 {[%clk 0:02:19]}  Be8 {[%clk 0:02:17]} 16. Nd3 {[%clk 0:02:18]}  Nd7 {[%clk 0:02:09]} 17. c5 {[%clk 0:02:13]}  Rab8 {[%clk 0:02:02]} 18. Rdc1 {[%clk 0:01:38]}  b6 {[%clk 0:01:54]} 19. cxb6 {[%clk 0:01:36]}  Nxb6 {[%clk 0:01:55]} 20. Nbc5 {[%clk 0:01:20]}  Nd5 {[%clk 0:01:34]} 21. Bxd5 {[%clk 0:01:09]}  exd5 {[%clk 0:01:35]} 22. Bc3 {[%clk 0:01:09]}  f6 {[%clk 0:01:19]} 23. Bd2 {[%clk 0:01:00]}  Kf7 {[%clk 0:01:06]} 24. Bf4 {[%clk 0:00:54]}  Rb6 {[%clk 0:00:57]} 25. Be3 {[%clk 0:00:52]}  d4 {[%clk 0:00:53]} 26. Bd2 {[%clk 0:00:50]}  g5 {[%clk 0:00:39]} 27. Kf1 {[%clk 0:00:46]}  Rbb8 {[%clk 0:00:33]} 28. Ke1 {[%clk 0:00:41]}  Ne5 {[%clk 0:00:23]} 29. Nxe5+ {[%clk 0:00:37]}  fxe5 {[%clk 0:00:24]} 30. Ne4 {[%clk 0:00:37]}  Rxc1+ {[%clk 0:00:14]} 31. Rxc1 {[%clk 0:00:38]}  h6 {[%clk 0:00:13]} 32. Bxa5 {[%clk 0:00:36]}  Bxa4 {[%clk 0:00:13]} 33. f3 {[%clk 0:00:14]}  Rb7 {[%clk 0:00:12]} 34. Kf2 {[%clk 0:00:14]}  h5 {[%clk 0:00:09]} 35. h3 {[%clk 0:00:14]}  g4 {[%clk 0:00:09]} 36. hxg4 {[%clk 0:00:13]}  hxg4 {[%clk 0:00:10]} 37. fxg4 {[%clk 0:00:11]}  Bd7 {[%clk 0:00:10]} 38. g5 {[%clk 0:00:10]}  Bf5 {[%clk 0:00:10]} 39. Nf6 {[%clk 0:00:08]}  e4 {[%clk 0:00:07]} 40. Rc4 {[%clk 0:00:03]}  Rb5 {[%clk 0:00:05]} 41. Be1 {[%clk 0:00:02]}  Bg6 {[%clk 0:00:04]} 42. Rxd4 {[%clk 0:00:02]}  Bc5 {[%clk 0:00:04]} 43. Bc3 {[%clk 0:00:02]}  Rb3 {[%clk 0:00:04]} 44. Ba1 {[%clk 0:00:02]}  Rb1 {[%clk 0:00:04]} 45. Bc3 {[%clk 0:00:02]}  Rb3 {[%clk 0:00:03]} 46. Ba1 {[%clk 0:00:02]}  Ra3 {[%clk 0:00:03]} 47. Bb2 {[%clk 0:00:03]}  Ra2 {[%clk 0:00:04]} 48. Bc3 {[%clk 0:00:03]}  Rc2 {[%clk 0:00:04]} 49. Ba1 {[%clk 0:00:03]}  Bxd4+ {[%clk 0:00:04]} 50. Bxd4 {[%clk 0:00:04]}  Ke6 {[%clk 0:00:05]} 51. Ke3 {[%clk 0:00:03]}  Kf5 {[%clk 0:00:05]} 52. Nxe4 {[%clk 0:00:03]}  Kg4 {[%clk 0:00:05]} 53. Nf2+ {[%clk 0:00:02]}  Kxg3 {[%clk 0:00:05]} 54. Be5+ {[%clk 0:00:01]}  Kh4 {[%clk 0:00:05]} 55. Bf4 {[%clk 0:00:01]}  Bh5 {[%clk 0:00:06]} 0-1


[Site "https://www.chess.com"]

[Event "Titled Tuesday Blitz December 13 Late 2022"]
[White "Steenbekkers, Franck"]
[Black "Shapiro, Daniel"]
[WhiteFideId "1004220"]
[BlackFideId "2001780"]
[WhiteElo "1950"]
[BlackElo "2354"]
[Result "0-1"]
[Round "09"]
[TimeControl "180+1"]
[Date "2022.12.14"]
[WhiteClock "0:01:27"]
[BlackClock "0:00:44"]

1. e4 {[%clk 0:03:00]}  e5 {[%clk 0:03:00]} 2. Nf3 {[%clk 0:03:00]}  Nc6 {[%clk 0:03:00]} 3. Bb5 {[%clk 0:02:58]}  a6 {[%clk 0:02:59]} 4. Ba4 {[%clk 0:02:58]}  Nf6 {[%clk 0:02:59]} 5. O-O {[%clk 0:02:58]}  Be7 {[%clk 0:02:59]} 6. Re1 {[%clk 0:02:57]}  b5 {[%clk 0:02:59]} 7. Bb3 {[%clk 0:02:57]}  d6 {[%clk 0:03:00]} 8. c3 {[%clk 0:02:56]}  O-O {[%clk 0:02:59]} 9. d4 {[%clk 0:02:56]}  Bg4 {[%clk 0:02:58]} 10. d5 {[%clk 0:02:56]}  Na5 {[%clk 0:02:58]} 11. Bc2 {[%clk 0:02:56]}  c6 {[%clk 0:02:56]} 12. h3 {[%clk 0:02:55]}  Bd7 {[%clk 0:02:48]} 13. Nxe5 {[%clk 0:02:50]}  dxe5 {[%clk 0:02:42]} 14. d6 {[%clk 0:02:50]}  Be6 {[%clk 0:02:39]} 15. dxe7 {[%clk 0:02:49]}  Qxe7 {[%clk 0:02:40]} 16. Qf3 {[%clk 0:02:46]}  h6 {[%clk 0:02:22]} 17. b3 {[%clk 0:02:41]}  c5 {[%clk 0:02:18]} 18. Be3 {[%clk 0:02:40]}  Nc6 {[%clk 0:02:08]} 19. Nd2 {[%clk 0:02:38]}  b4 {[%clk 0:02:07]} 20. c4 {[%clk 0:02:24]}  Rfd8 {[%clk 0:02:03]} 21. Nf1 {[%clk 0:02:23]}  a5 {[%clk 0:02:00]} 22. Ng3 {[%clk 0:02:20]}  a4 {[%clk 0:01:55]} 23. Nf5 {[%clk 0:02:17]}  Bxf5 {[%clk 0:01:55]} 24. exf5 {[%clk 0:02:16]}  Ra6 {[%clk 0:01:30]} 25. Qg3 {[%clk 0:02:12]}  Kh7 {[%clk 0:01:16]} 26. bxa4 {[%clk 0:02:08]}  Nd4 {[%clk 0:01:13]} 27. Bb3 {[%clk 0:01:59]}  Nxf5 {[%clk 0:01:01]} 28. Qf3 {[%clk 0:01:51]}  Nd4 {[%clk 0:00:54]} 29. Bxd4 {[%clk 0:01:46]}  Rxd4 {[%clk 0:00:53]} 30. Qf5+ {[%clk 0:01:45]}  g6 {[%clk 0:00:47]} 31. Qxe5 {[%clk 0:01:45]}  Re6 {[%clk 0:00:45]} 32. Qxe6 {[%clk 0:01:27]}  fxe6 {[%clk 0:00:44]} 0-1


[Site "https://www.chess.com"]

[Event "Titled Tuesday Blitz December 13 Late 2022"]
[White "Suarez Uriel, Adrian"]
[Black "Remizov, Yaroslav"]
[WhiteFideId "22230874"]
[BlackFideId "34134015"]
[WhiteElo "2331"]
[BlackElo "2415"]
[Result "0-1"]
[Round "09"]
[TimeControl "180+1"]
[Date "2022.12.13"]
[WhiteClock "0:01:18"]
[BlackClock "0:00:34"]

1. e4 {[%clk 0:03:00]}  c6 {[%clk 0:02:59]} 2. Nf3 {[%clk 0:02:59]}  d5 {[%clk 0:03:00]} 3. Nc3 {[%clk 0:03:00]}  dxe4 {[%clk 0:03:00]} 4. Nxe4 {[%clk 0:03:01]}  Nf6 {[%clk 0:03:01]} 5. Qe2 {[%clk 0:03:01]}  Nxe4 {[%clk 0:03:01]} 6. Qxe4 {[%clk 0:03:02]}  Qd5 {[%clk 0:03:01]} 7. Qh4 {[%clk 0:03:01]}  Qe6+ {[%clk 0:03:00]} 8. Be2 {[%clk 0:03:01]}  Qg4 {[%clk 0:03:00]} 9. Qg3 {[%clk 0:03:02]}  g6 {[%clk 0:03:00]} 10. d4 {[%clk 0:03:00]}  Bg7 {[%clk 0:02:59]} 11. c3 {[%clk 0:02:58]}  O-O {[%clk 0:02:51]} 12. Bf4 {[%clk 0:02:54]}  Qxg3 {[%clk 0:02:51]} 13. hxg3 {[%clk 0:02:54]}  Nd7 {[%clk 0:02:50]} 14. O-O-O {[%clk 0:02:52]}  Nf6 {[%clk 0:02:47]} 15. Ne5 {[%clk 0:02:43]}  Be6 {[%clk 0:02:40]} 16. b3 {[%clk 0:02:35]}  Ne4 {[%clk 0:02:37]} 17. Be3 {[%clk 0:02:19]}  Nxc3 {[%clk 0:02:36]} 18. Rd2 {[%clk 0:02:19]}  Rfd8 {[%clk 0:02:19]} 19. Bc4 {[%clk 0:02:11]}  Bxc4 {[%clk 0:02:03]} 20. bxc4 {[%clk 0:02:08]}  Bxe5 {[%clk 0:01:56]} 21. dxe5 {[%clk 0:02:08]}  Rxd2 {[%clk 0:01:56]} 22. Kxd2 {[%clk 0:02:08]}  Ne4+ {[%clk 0:01:29]} 23. Kd3 {[%clk 0:02:04]}  f5 {[%clk 0:01:30]} 24. exf6 {[%clk 0:02:03]}  Nxf6 {[%clk 0:01:27]} 25. f3 {[%clk 0:02:03]}  Rd8+ {[%clk 0:01:25]} 26. Kc3 {[%clk 0:02:03]}  b6 {[%clk 0:01:24]} 27. g4 {[%clk 0:02:03]}  c5 {[%clk 0:01:22]} 28. a4 {[%clk 0:02:01]}  Nd7 {[%clk 0:01:14]} 29. Rd1 {[%clk 0:01:57]}  Kf7 {[%clk 0:01:13]} 30. Bf4 {[%clk 0:01:52]}  Ke8 {[%clk 0:01:10]} 31. Rh1 {[%clk 0:01:45]}  Nf8 {[%clk 0:01:08]} 32. a5 {[%clk 0:01:42]}  Rd7 {[%clk 0:00:40]} 33. axb6 {[%clk 0:01:40]}  axb6 {[%clk 0:00:40]} 34. Ra1 {[%clk 0:01:25]}  Ne6 {[%clk 0:00:38]} 35. Be5 {[%clk 0:01:25]}  Nd4 {[%clk 0:00:34]} 36. Ra7 {[%clk 0:01:18]}  Rxa7 {[%clk 0:00:34]} 0-1


[Site "https://www.chess.com"]

[Event "Titled Tuesday Blitz December 13 Late 2022"]
[White "Svane, Frederik"]
[Black "Xiong, Jeffery"]
[WhiteFideId "12923044"]
[BlackFideId "2047640"]
[WhiteElo "2466"]
[BlackElo "2726"]
[Result "1-0"]
[Round "09"]
[TimeControl "180+1"]
[Date "2022.12.13"]
[WhiteClock "0:00:04"]
[BlackClock "0:00:05"]

1. c4 {[%clk 0:03:00]}  e5 {[%clk 0:02:59]} 2. g3 {[%clk 0:03:00]}  Be7 {[%clk 0:02:57]} 3. Nc3 {[%clk 0:02:57]}  f5 {[%clk 0:02:57]} 4. d4 {[%clk 0:02:53]}  e4 {[%clk 0:02:42]} 5. h4 {[%clk 0:02:49]}  Nf6 {[%clk 0:02:42]} 6. Nh3 {[%clk 0:02:49]}  O-O {[%clk 0:02:43]} 7. Bg5 {[%clk 0:02:48]}  c6 {[%clk 0:02:43]} 8. e3 {[%clk 0:02:46]}  d6 {[%clk 0:02:40]} 9. Be2 {[%clk 0:02:43]}  Nbd7 {[%clk 0:02:40]} 10. Nf4 {[%clk 0:02:43]}  Nb6 {[%clk 0:02:23]} 11. h5 {[%clk 0:02:41]}  Qe8 {[%clk 0:02:21]} 12. Qb3 {[%clk 0:02:32]}  Qf7 {[%clk 0:02:19]} 13. a4 {[%clk 0:02:29]}  Rb8 {[%clk 0:02:12]} 14. a5 {[%clk 0:02:27]}  Nbd7 {[%clk 0:02:12]} 15. Qa4 {[%clk 0:02:21]}  Ng4 {[%clk 0:01:58]} 16. Bxe7 {[%clk 0:02:17]}  Qxe7 {[%clk 0:01:59]} 17. b4 {[%clk 0:02:10]}  Ndf6 {[%clk 0:01:58]} 18. c5 {[%clk 0:02:05]}  d5 {[%clk 0:01:30]} 19. b5 {[%clk 0:01:54]}  Qe8 {[%clk 0:01:16]} 20. Qb3 {[%clk 0:01:49]}  Be6 {[%clk 0:01:09]} 21. Rb1 {[%clk 0:01:40]}  Bf7 {[%clk 0:01:06]} 22. Qa4 {[%clk 0:01:28]}  g5 {[%clk 0:00:57]} 23. hxg6 {[%clk 0:01:28]}  hxg6 {[%clk 0:00:58]} 24. a6 {[%clk 0:01:10]}  b6 {[%clk 0:00:58]} 25. bxc6 {[%clk 0:01:07]}  bxc5 {[%clk 0:00:58]} 26. Rb7 {[%clk 0:00:51]}  cxd4 {[%clk 0:00:54]} 27. Qxd4 {[%clk 0:00:51]}  Qxc6 {[%clk 0:00:49]} 28. Bxg4 {[%clk 0:00:50]}  fxg4 {[%clk 0:00:42]} 29. Rxa7 {[%clk 0:00:42]}  Rb3 {[%clk 0:00:33]} 30. Nfe2 {[%clk 0:00:34]}  Nh7 {[%clk 0:00:24]} 31. Kf1 {[%clk 0:00:21]}  Qf6 {[%clk 0:00:11]} 32. Rxh7 {[%clk 0:00:05]}  Qxd4 {[%clk 0:00:11]} 33. Nxd4 {[%clk 0:00:06]}  Rxc3 {[%clk 0:00:12]} 34. Rh4 {[%clk 0:00:02]}  Ra3 {[%clk 0:00:13]} 35. Rxg4 {[%clk 0:00:02]}  Be8 {[%clk 0:00:13]} 36. Rf4 {[%clk 0:00:03]}  Ra2 {[%clk 0:00:09]} 37. Rxf8+ {[%clk 0:00:02]}  Kxf8 {[%clk 0:00:10]} 38. Ra8 {[%clk 0:00:03]}  Ke7 {[%clk 0:00:10]} 39. Ra7+ {[%clk 0:00:03]}  Bd7 {[%clk 0:00:10]} 40. Kg2 {[%clk 0:00:04]}  Kd6 {[%clk 0:00:11]} 41. g4 {[%clk 0:00:04]}  Bxg4 {[%clk 0:00:10]} 42. Kg3 {[%clk 0:00:05]}  Bd7 {[%clk 0:00:10]} 43. Ra8 {[%clk 0:00:04]}  Kc7 {[%clk 0:00:11]} 44. a7 {[%clk 0:00:04]}  Kd6 {[%clk 0:00:09]} 45. Kf4 {[%clk 0:00:03]}  Rxf2+ {[%clk 0:00:08]} 46. Kg5 {[%clk 0:00:04]}  Ra2 {[%clk 0:00:09]} 47. Kxg6 {[%clk 0:00:04]}  Kc7 {[%clk 0:00:08]} 48. Kg5 {[%clk 0:00:05]}  Bc8 {[%clk 0:00:06]} 49. Nb5+ {[%clk 0:00:04]}  Kd7 {[%clk 0:00:05]} 50. Rb8 {[%clk 0:00:04]} 1-0


[Site "https://www.chess.com"]

[Event "Titled Tuesday Blitz December 13 Late 2022"]
[White "Svane, Rasmus"]
[Black "Kravtsiv, Martyn"]
[WhiteFideId "4657101"]
[BlackFideId "14113147"]
[WhiteElo "2674"]
[BlackElo "2695"]
[Result "1-0"]
[Round "09"]
[TimeControl "180+1"]
[Date "2022.12.13"]
[WhiteClock "0:00:14"]
[BlackClock "0:00:02"]

1. Nf3 {[%clk 0:03:00]}  d5 {[%clk 0:02:56]} 2. g3 {[%clk 0:03:01]}  Nf6 {[%clk 0:02:56]} 3. Bg2 {[%clk 0:03:01]}  c5 {[%clk 0:02:56]} 4. O-O {[%clk 0:03:01]}  Nc6 {[%clk 0:02:57]} 5. d4 {[%clk 0:03:02]}  cxd4 {[%clk 0:02:57]} 6. Nxd4 {[%clk 0:03:02]}  e5 {[%clk 0:02:58]} 7. Nxc6 {[%clk 0:03:03]}  bxc6 {[%clk 0:02:58]} 8. c4 {[%clk 0:03:04]}  Be6 {[%clk 0:02:58]} 9. Nc3 {[%clk 0:02:59]}  Qd7 {[%clk 0:02:56]} 10. Qa4 {[%clk 0:02:59]}  Rc8 {[%clk 0:02:56]} 11. cxd5 {[%clk 0:02:58]}  cxd5 {[%clk 0:02:55]} 12. Qxd7+ {[%clk 0:02:59]}  Kxd7 {[%clk 0:02:55]} 13. Rd1 {[%clk 0:02:59]}  Bc5 {[%clk 0:02:38]} 14. Na4 {[%clk 0:02:59]}  h6 {[%clk 0:02:32]} 15. Nxc5+ {[%clk 0:02:53]}  Rxc5 {[%clk 0:02:33]} 16. f4 {[%clk 0:02:40]}  e4 {[%clk 0:02:32]} 17. h3 {[%clk 0:02:31]}  Rc2 {[%clk 0:02:28]} 18. g4 {[%clk 0:02:28]}  Kc6 {[%clk 0:02:07]} 19. f5 {[%clk 0:02:24]}  Bd7 {[%clk 0:01:59]} 20. Rd2 {[%clk 0:02:00]}  Rxd2 {[%clk 0:01:52]} 21. Bxd2 {[%clk 0:02:00]}  h5 {[%clk 0:01:51]} 22. Rc1+ {[%clk 0:01:59]}  Kb7 {[%clk 0:01:50]} 23. g5 {[%clk 0:01:45]}  Ne8 {[%clk 0:01:50]} 24. Rc5 {[%clk 0:01:41]}  Bc6 {[%clk 0:01:48]} 25. Bc3 {[%clk 0:01:39]}  Nd6 {[%clk 0:01:40]} 26. Bxg7 {[%clk 0:01:37]}  Re8 {[%clk 0:01:32]} 27. f6 {[%clk 0:01:24]}  Re5 {[%clk 0:01:14]} 28. h4 {[%clk 0:01:23]}  Bd7 {[%clk 0:01:08]} 29. Bf8 {[%clk 0:01:17]}  Nf5 {[%clk 0:01:07]} 30. g6 {[%clk 0:01:17]}  Nxh4 {[%clk 0:00:59]} 31. gxf7 {[%clk 0:01:10]}  Rg5 {[%clk 0:00:55]} 32. Kf1 {[%clk 0:00:48]}  Rxg2 {[%clk 0:00:51]} 33. Bd6 {[%clk 0:00:44]}  Bg4 {[%clk 0:00:20]} 34. Rc2 {[%clk 0:00:34]}  Bh3 {[%clk 0:00:06]} 35. f8=Q {[%clk 0:00:32]}  Rg8+ {[%clk 0:00:04]} 36. Kf2 {[%clk 0:00:32]}  Rxf8 {[%clk 0:00:03]} 37. Bxf8 {[%clk 0:00:33]}  Be6 {[%clk 0:00:03]} 38. Bd6 {[%clk 0:00:30]}  Nf5 {[%clk 0:00:04]} 39. Be5 {[%clk 0:00:21]}  h4 {[%clk 0:00:03]} 40. f7 {[%clk 0:00:19]}  e3+ {[%clk 0:00:02]} 41. Kf3 {[%clk 0:00:14]} 1-0


[Site "https://www.chess.com"]

[Event "Titled Tuesday Blitz December 13 Late 2022"]
[White "Szyszylo, Rafal"]
[Black "Khandelwal, Ankush"]
[WhiteFideId "1109626"]
[BlackFideId "413470"]
[WhiteElo "1981"]
[BlackElo "2271"]
[Result "0-1"]
[Round "09"]
[TimeControl "180+1"]
[Date "2022.12.14"]
[WhiteClock "0:00:01"]
[BlackClock "0:00:03"]

1. e4 {[%clk 0:03:00]}  c5 {[%clk 0:02:55]} 2. Nf3 {[%clk 0:02:57]}  d6 {[%clk 0:02:54]} 3. d4 {[%clk 0:02:56]}  cxd4 {[%clk 0:02:55]} 4. Nxd4 {[%clk 0:02:56]}  Nf6 {[%clk 0:02:56]} 5. Nc3 {[%clk 0:02:55]}  a6 {[%clk 0:02:56]} 6. Bc4 {[%clk 0:02:54]}  e6 {[%clk 0:02:52]} 7. Bb3 {[%clk 0:02:54]}  Nbd7 {[%clk 0:02:52]} 8. f4 {[%clk 0:02:54]}  Nc5 {[%clk 0:02:48]} 9. e5 {[%clk 0:02:55]}  dxe5 {[%clk 0:02:45]} 10. fxe5 {[%clk 0:02:56]}  Nfd7 {[%clk 0:02:28]} 11. Qh5 {[%clk 0:02:42]}  Nxb3 {[%clk 0:01:46]} 12. Nxb3 {[%clk 0:01:58]}  Qb6 {[%clk 0:01:30]} 13. Rf1 {[%clk 0:01:50]}  g6 {[%clk 0:01:29]} 14. Qf3 {[%clk 0:01:35]}  Bb4 {[%clk 0:01:08]} 15. Qxf7+ {[%clk 0:01:32]}  Kd8 {[%clk 0:01:08]} 16. Bg5+ {[%clk 0:01:31]}  Kc7 {[%clk 0:01:09]} 17. O-O-O {[%clk 0:01:27]}  Bxc3 {[%clk 0:01:07]} 18. bxc3 {[%clk 0:01:27]}  Rf8 {[%clk 0:01:07]} 19. Qxh7 {[%clk 0:01:19]}  Rxf1 {[%clk 0:01:07]} 20. Rxf1 {[%clk 0:01:18]}  Kb8 {[%clk 0:01:07]} 21. Qxg6 {[%clk 0:01:12]}  Ka7 {[%clk 0:01:04]} 22. Qe4 {[%clk 0:01:10]}  Qc7 {[%clk 0:00:58]} 23. Be3+ {[%clk 0:01:10]}  b6 {[%clk 0:00:58]} 24. Bd4 {[%clk 0:01:09]}  Bb7 {[%clk 0:00:58]} 25. Qg6 {[%clk 0:01:08]}  Nxe5 {[%clk 0:00:56]} 26. Qxe6 {[%clk 0:01:07]}  Nc4 {[%clk 0:00:31]} 27. Rf7 {[%clk 0:00:55]}  Qc8 {[%clk 0:00:23]} 28. Qxc8 {[%clk 0:00:37]}  Rxc8 {[%clk 0:00:22]} 29. g4 {[%clk 0:00:21]}  Re8 {[%clk 0:00:20]} 30. Kd1 {[%clk 0:00:22]}  Nb2+ {[%clk 0:00:17]} 31. Kd2 {[%clk 0:00:22]}  Nc4+ {[%clk 0:00:17]} 32. Kd3 {[%clk 0:00:18]}  Nb2+ {[%clk 0:00:15]} 33. Kd2 {[%clk 0:00:18]}  Nc4+ {[%clk 0:00:16]} 34. Kd1 {[%clk 0:00:16]}  Nb2+ {[%clk 0:00:16]} 35. Kc1 {[%clk 0:00:16]}  Nc4 {[%clk 0:00:16]} 36. Rf1 {[%clk 0:00:16]}  Bg2 {[%clk 0:00:16]} 37. Rg1 {[%clk 0:00:16]}  Bf3 {[%clk 0:00:17]} 38. g5 {[%clk 0:00:16]}  Re2 {[%clk 0:00:16]} 39. g6 {[%clk 0:00:12]}  Be4 {[%clk 0:00:17]} 40. g7 {[%clk 0:00:07]}  Rxc2+ {[%clk 0:00:17]} 41. Kd1 {[%clk 0:00:08]}  Nb2+ {[%clk 0:00:18]} 42. Ke1 {[%clk 0:00:07]}  Nd3+ {[%clk 0:00:18]} 43. Kf1 {[%clk 0:00:06]}  Nf4 {[%clk 0:00:03]} 44. g8=Q {[%clk 0:00:01]}  Bd3+ {[%clk 0:00:03]} 0-1


[Site "https://www.chess.com"]

[Event "Titled Tuesday Blitz December 13 Late 2022"]
[White "Thiel, Thomas"]
[Black "Sargsyan, Anna M."]
[WhiteFideId "4615964"]
[BlackFideId "13308130"]
[WhiteElo "2251"]
[BlackElo "2284"]
[Result "0-1"]
[Round "09"]
[TimeControl "180+1"]
[Date "2022.12.13"]
[WhiteClock "0:00:03"]
[BlackClock "0:00:33"]

1. e4 {[%clk 0:03:00]}  e5 {[%clk 0:02:59]} 2. Nf3 {[%clk 0:02:59]}  Nc6 {[%clk 0:02:59]} 3. d4 {[%clk 0:02:58]}  exd4 {[%clk 0:02:58]} 4. Nxd4 {[%clk 0:02:59]}  Nf6 {[%clk 0:02:57]} 5. Nxc6 {[%clk 0:02:59]}  bxc6 {[%clk 0:02:58]} 6. e5 {[%clk 0:02:59]}  Qe7 {[%clk 0:02:59]} 7. Qe2 {[%clk 0:02:58]}  Nd5 {[%clk 0:02:59]} 8. h4 {[%clk 0:02:58]}  Qe6 {[%clk 0:02:56]} 9. g3 {[%clk 0:02:57]}  d6 {[%clk 0:02:44]} 10. exd6 {[%clk 0:02:46]}  cxd6 {[%clk 0:02:41]} 11. Qxe6+ {[%clk 0:02:40]}  Bxe6 {[%clk 0:02:42]} 12. Bg2 {[%clk 0:02:39]}  Kd7 {[%clk 0:02:28]} 13. c3 {[%clk 0:02:33]}  Rb8 {[%clk 0:02:23]} 14. O-O {[%clk 0:02:32]}  Be7 {[%clk 0:02:23]} 15. Nd2 {[%clk 0:02:32]}  Nb6 {[%clk 0:02:18]} 16. Ne4 {[%clk 0:02:30]}  f5 {[%clk 0:02:02]} 17. Ng5 {[%clk 0:02:25]}  Bd5 {[%clk 0:02:02]} 18. Rd1 {[%clk 0:02:12]}  Bxg2 {[%clk 0:01:55]} 19. Kxg2 {[%clk 0:02:11]}  h6 {[%clk 0:01:51]} 20. Nf3 {[%clk 0:02:10]}  Bf6 {[%clk 0:01:33]} 21. Rd3 {[%clk 0:01:40]}  Rhe8 {[%clk 0:01:13]} 22. b3 {[%clk 0:01:28]}  Re2 {[%clk 0:01:02]} 23. Bd2 {[%clk 0:01:12]}  Rbe8 {[%clk 0:00:59]} 24. Rd1 {[%clk 0:01:10]}  Kc7 {[%clk 0:00:52]} 25. c4 {[%clk 0:01:10]}  d5 {[%clk 0:00:48]} 26. Bf4+ {[%clk 0:01:08]}  Kb7 {[%clk 0:00:48]} 27. cxd5 {[%clk 0:01:07]}  Nxd5 {[%clk 0:00:47]} 28. Rxd5 {[%clk 0:01:04]}  cxd5 {[%clk 0:00:46]} 29. Rxd5 {[%clk 0:01:04]}  Rxa2 {[%clk 0:00:42]} 30. Nd4 {[%clk 0:00:14]}  Bxd4 {[%clk 0:00:36]} 31. Rxd4 {[%clk 0:00:13]}  Ree2 {[%clk 0:00:37]} 32. Rd7+ {[%clk 0:00:08]}  Kc6 {[%clk 0:00:36]} 33. Rc7+ {[%clk 0:00:07]}  Kb6 {[%clk 0:00:36]} 34. Rc3 {[%clk 0:00:04]}  Rxf2+ {[%clk 0:00:36]} 35. Kg1 {[%clk 0:00:03]}  Rfc2 {[%clk 0:00:33]} 0-1


[Site "https://www.chess.com"]